bitfinex/quotes_BTCUSD_20250328
["timestamp","ask_amount","ask_price","bid_price","bid_amount"]
[1743138144398,0.32316732,86366.0,86365.0,0.0001692]
[1743138144615,0.005,86366.0,86365.0,0.0001692]
[1743138144813,0.19232,86366.0,86365.0,0.0001692]
[1743138145246,0.005,86366.0,86365.0,0.0117472]
[1743138145457,0.19232,86366.0,86365.0,0.0001692]
[1743138146253,0.18732,86366.0,86365.0,0.0001692]
[1743138146740,0.19232,86366.0,86365.0,0.0001692]
[1743138146946,0.18732,86366.0,86365.0,0.0001692]
[1743138147186,0.19032,86366.0,86365.0,0.0001692]
[1743138147569,0.18732,86366.0,86365.0,0.0001692]
[1743138147774,0.20648384,86366.0,86365.0,0.0001692]
[1743138147951,0.20682224,86366.0,86365.0,0.0001692]
[1743138149139,0.01950224,86366.0,86365.0,0.0001692]
[1743138149341,0.01950224,86366.0,86365.0,0.14054569]
[1743138150552,0.01850224,86366.0,86365.0,0.01471005]
[1743138151399,0.01850224,86366.0,86365.0,0.0001692]
[1743138151805,0.32139741,86366.0,86365.0,0.0001692]
[1743138152019,0.42224897,86366.0,86365.0,0.0001692]
[1743138152933,0.42324897,86366.0,86365.0,0.0001692]
[1743138153347,0.42224897,86366.0,86365.0,0.0001692]
[1743138153555,0.42524897,86366.0,86365.0,0.0001692]
[1743138154810,0.40708513,86366.0,86365.0,0.0001692]
[1743138155619,0.02618513,86366.0,86365.0,0.0001692]
[1743138155895,0.21624079,86366.0,86365.0,0.0001692]
[1743138156066,0.21324079,86366.0,86365.0,0.0001692]
[1743138156299,0.21724079,86366.0,86365.0,0.0001692]
[1743138157009,0.23896487,86366.0,86365.0,0.0001692]
[1743138157210,0.23606921,86366.0,86365.0,0.0001692]
[1743138157951,0.25745483,86366.0,86365.0,0.0001692]
[1743138158755,0.23573075,86366.0,86365.0,0.0001692]
[1743138159212,0.25389821,86366.0,86365.0,0.0001692]
[1743138160166,0.55389821,86366.0,86365.0,0.0001692]
[1743138162923,0.54989821,86366.0,86365.0,0.0001692]
[1743138163120,0.55489821,86366.0,86365.0,0.0001692]
[1743138164519,0.58911744,86366.0,86365.0,0.0001692]
[1743138164723,0.3,86365.0,86351.0,0.0001693]
[1743138164918,0.3,86360.0,86351.0,0.0001693]
[1743138165140,0.00289561,86359.0,86351.0,0.0001693]
[1743138166172,0.231596,86357.0,86351.0,0.0001693]
[1743138166381,0.3,86357.0,86351.0,0.0001693]
[1743138167225,0.3,86355.0,86351.0,0.0001693]
[1743138167409,0.18704,86354.0,86351.0,0.0001693]
[1743138167620,0.005,86357.0,86356.0,0.231599]
[1743138167802,0.005,86357.0,86356.0,0.27024523]
[1743138167803,0.19204,86357.0,86356.0,0.27024523]
[1743138167995,0.19204,86357.0,86356.0,0.243178]
[1743138168625,0.19204,86357.0,86354.0,0.243184]
[1743138168986,0.18704,86357.0,86354.0,0.243184]
[1743138169173,0.10271932,86356.0,86355.0,0.4179]
[1743138169388,0.10271932,86356.0,86355.0,0.4129]
[1743138169595,0.10271932,86356.0,86351.0,0.0001693]
[1743138169834,0.0028953,86355.0,86351.0,0.0001693]
[1743138170592,0.3028953,86355.0,86351.0,0.0001693]
[1743138170796,0.0231769,86352.0,86351.0,0.0001693]
[1743138171161,0.04456751,86352.0,86351.0,0.0001693]
[1743138171375,0.53152751,86352.0,86351.0,0.0001693]
[1743138171818,0.02139061,86352.0,86351.0,0.0001693]
[1743138172029,0.20835061,86352.0,86351.0,0.0001693]
[1743138172242,0.20835061,86352.0,86351.0,0.02608113]
[1743138172393,0.18696,86352.0,86351.0,0.0001693]
[1743138172802,0.18696,86352.0,86351.0,0.0011693]
[1743138173002,0.18696,86352.0,86351.0,0.0001693]
[1743138173403,0.18696,86352.0,86351.0,0.0021693]
[1743138175484,0.20836478,86352.0,86351.0,0.0021693]
[1743138175661,0.02140478,86352.0,86351.0,0.2337813]
[1743138175870,0.20828478,86352.0,86351.0,0.0001693]
[1743138176278,0.20828478,86352.0,86351.0,0.0011693]
[1743138176484,0.02140478,86352.0,86351.0,0.2443613]
[1743138176905,0.02140478,86352.0,86351.0,0.0127493]
[1743138177027,0.02140478,86352.0,86351.0,0.2443613]
[1743138177948,0.20500483,86352.0,86351.0,0.2443613]
[1743138178966,0.20500483,86352.0,86351.0,0.25890215]
[1743138179168,0.01816483,86352.0,86351.0,0.72358666]
[1743138179370,0.01816483,86352.0,86351.0,0.9134443]
[1743138179770,0.01816483,86352.0,86351.0,0.86165979]
[1743138180401,0.01816483,86352.0,86351.0,0.86065979]
[1743138180801,0.01816483,86352.0,86351.0,0.86465979]
[1743138181216,0.01816483,86352.0,86351.0,0.91185979]
[1743138181848,0.0003384,86366.0,86364.0,0.243155]
[1743138182048,0.0003384,86366.0,86364.0,0.4800581]
[1743138182410,0.01850113,86365.0,86364.0,0.4800581]
[1743138183405,0.01850113,86365.0,86364.0,0.9401581]
[1743138183615,0.0003384,86365.0,86364.0,0.9461581]
[1743138183822,0.18676,86386.0,86385.0,0.011576]
[1743138183973,0.18676,86386.0,86385.0,1.41112339]
[1743138184174,0.18676,86386.0,86385.0,1.52538103]
[1743138184605,0.18676,86386.0,86385.0,0.9638279]
[1743138186438,0.18676,86386.0,86385.0,0.9648279]
[1743138186837,0.18676,86386.0,86385.0,0.9638279]
[1743138188540,0.18676,86386.0,86385.0,0.5514]
[1743138189148,0.02346045,86392.0,86391.0,0.231505]
[1743138189466,0.51017251,86392.0,86386.0,0.011575]
[1743138189712,0.01823087,86392.0,86391.0,0.25762085]
[1743138191780,0.01923087,86392.0,86391.0,0.25762085]
[1743138192199,0.01823087,86392.0,86391.0,0.25762085]
[1743138192403,0.01823087,86392.0,86391.0,0.25962085]
[1743138192656,0.01823087,86392.0,86391.0,0.002]
[1743138193060,0.01823087,86392.0,86391.0,0.013575]
[1743138193867,0.20479087,86392.0,86391.0,0.013575]
[1743138194462,0.20479087,86392.0,86391.0,0.4260029]
[1743138194664,0.18663206,86392.0,86391.0,0.4260029]
[1743138195044,0.18663206,86392.0,86391.0,0.4144279]
[1743138196657,7.206e-05,86392.0,86391.0,0.4144279]
[1743138196880,0.18655206,86392.0,86391.0,0.4144279]
[1743138197079,7.206e-05,86392.0,86391.0,0.4144279]
[1743138197279,0.18655206,86392.0,86391.0,0.55480139]
[1743138197731,0.18689066,86392.0,86391.0,0.42896875]
[1743138197903,0.18689066,86392.0,86391.0,0.42696875]
[1743138198295,0.18689066,86392.0,86391.0,0.42681175]
[1743138198693,0.18689066,86392.0,86391.0,0.43838675]
[1743138198952,0.20504882,86392.0,86391.0,0.43938675]
[1743138199128,0.20504882,86392.0,86391.0,0.55364439]
[1743138199337,0.20504882,86392.0,86391.0,0.43938675]
[1743138199740,0.20504882,86392.0,86391.0,0.4132709]
[1743138200758,0.20504882,86392.0,86391.0,0.4248459]
[1743138201509,0.20504882,86392.0,86391.0,0.4132709]
[1743138202247,0.2264073,86392.0,86391.0,0.4132709]
[1743138202451,0.2264073,86392.0,86391.0,0.4248459]
[1743138203059,0.2264073,86392.0,86391.0,0.4132709]
[1743138203436,0.20504882,86392.0,86391.0,0.4132709]
[1743138205556,0.18689066,86392.0,86391.0,0.4132709]
[1743138205735,0.18689066,86392.0,86391.0,0.4122709]
[1743138206133,0.18789066,86392.0,86390.0,0.55116]
[1743138206342,0.3,86391.0,86390.0,0.55116]
[1743138206767,0.3,86391.0,86374.0,0.4122709]
[1743138206768,0.3,86391.0,86376.0,0.55116]
[1743138206971,0.19366513,86386.0,86374.0,0.4122709]
[1743138207113,0.00289437,86385.0,86374.0,0.4122709]
[1743138207519,0.30289437,86385.0,86372.0,0.55116]
[1743138207717,0.3,86385.0,86372.0,0.55116]
[1743138208127,0.0776,86384.0,86372.0,0.55116]
[1743138208363,0.0237649,86373.0,86372.0,0.55116]
[1743138208675,0.5100849,86373.0,86372.0,0.55216]
[1743138209034,0.5100849,86373.0,86372.0,0.55116]
[1743138209777,0.54964579,86373.0,86372.0,0.55116]
[1743138210344,0.54964579,86373.0,86372.0,0.5513293]
[1743138211186,0.36332579,86373.0,86372.0,0.5513293]
[1743138211385,0.54960579,86373.0,86372.0,0.5513293]
[1743138212408,0.5282082,86373.0,86372.0,0.5513293]
[1743138213154,0.2282082,86373.0,86372.0,0.5513293]
[1743138214940,0.2100449,86373.0,86372.0,0.5513293]
[1743138215877,0.0237649,86373.0,86372.0,0.5513293]
[1743138216178,0.2099649,86373.0,86372.0,0.5513293]
[1743138217190,0.2109649,86373.0,86372.0,0.5513293]
[1743138218330,0.0247649,86373.0,86372.0,0.5513293]
[1743138218492,0.2109649,86373.0,86372.0,0.5513293]
[1743138218977,0.23236298,86373.0,86372.0,0.5513293]
[1743138219577,0.25052539,86373.0,86372.0,0.5513293]
[1743138220905,0.24952539,86373.0,86372.0,0.5513293]
[1743138223204,0.03956049,86373.0,86372.0,0.64326623]
[1743138223406,0.22568049,86373.0,86372.0,0.56587015]
[1743138223620,0.03956049,86373.0,86372.0,0.56587015]
[1743138223822,0.03956049,86373.0,86372.0,1.07081805]
[1743138223973,0.02139808,86373.0,86372.0,1.07081805]
[1743138225117,0.02139808,86376.0,86375.0,0.011577]
[1743138225306,0.02139808,86376.0,86375.0,0.14037549]
[1743138226370,0.02139808,86389.0,86387.0,0.011575]
[1743138226569,0.02139808,86389.0,86388.0,0.011575]
[1743138226792,0.02139808,86389.0,86388.0,0.4238459]
[1743138227004,0.02139808,86389.0,86388.0,0.54398282]
[1743138228047,0.02139808,86389.0,86388.0,0.43838675]
[1743138228765,0.03955633,86389.0,86388.0,0.43838675]
[1743138229065,0.01815825,86389.0,86388.0,0.43838675]
[1743138230023,0.03955633,86389.0,86388.0,0.43938675]
[1743138230240,0.03955633,86389.0,86388.0,0.43838675]
[1743138230444,0.03955633,86389.0,86388.0,0.43938675]
[1743138230862,0.03955633,86389.0,86388.0,0.43838675]
[1743138231062,0.03955633,86389.0,86388.0,0.55464439]
[1743138231266,0.03955633,86389.0,86388.0,0.44038675]
[1743138233907,0.03955633,86389.0,86388.0,0.42881175]
[1743138234108,0.02139808,86389.0,86388.0,0.42881175]
[1743138234340,0.02139808,86389.0,86388.0,0.67189975]
[1743138234540,0.02139808,86389.0,86388.0,0.42881175]
[1743138235097,0.18588,86389.0,86388.0,0.002]
[1743138235299,0.18877383,86389.0,86388.0,0.002]
[1743138235704,0.18588,86389.0,86388.0,0.002]
[1743138236102,0.02139808,86390.0,86388.0,0.002]
[1743138236329,0.18584,86389.0,86388.0,0.002]
[1743138236691,0.24149576,86389.0,86388.0,0.002]
[1743138236915,0.24149576,86389.0,86387.0,0.011575]
[1743138237120,0.24149576,86389.0,86385.0,0.231521]
[1743138237342,0.24149576,86389.0,86381.0,0.243106]
[1743138237343,0.24149576,86389.0,86384.0,0.01454085]
[1743138237755,0.26478692,86389.0,86384.0,0.01454085]
[1743138237919,0.05565576,86388.0,86384.0,0.01454085]
[1743138238528,0.0738148,86388.0,86387.0,0.243091]
[1743138238764,0.0738148,86388.0,86387.0,0.25763185]
[1743138238968,0.01815904,86388.0,86387.0,0.25763185]
[1743138241436,0.01815904,86388.0,86387.0,0.25963185]
[1743138241639,0.01815904,86388.0,86387.0,0.81079185]
[1743138241945,0.03957335,86388.0,86387.0,0.92504949]
[1743138242322,0.03957335,86388.0,86387.0,0.81079185]
[1743138244319,0.03957335,86388.0,86387.0,1.22306275]
[1743138244545,0.03957335,86388.0,86387.0,0.9654309]
[1743138244746,0.03957335,86388.0,86387.0,0.55316]
[1743138245980,0.05569269,86388.0,86387.0,0.55316]
[1743138246357,0.05569269,86388.0,86387.0,0.5513293]
[1743138249373,0.05569269,86388.0,86387.0,0.0001693]
[1743138249612,0.0595872,86388.0,86387.0,0.0001693]
[1743138250399,0.07674779,86388.0,86387.0,0.0001693]
[1743138250728,0.07874779,86388.0,86387.0,0.0001693]
[1743138251568,0.09032279,86388.0,86387.0,0.0001693]
[1743138251688,0.45694779,86388.0,86387.0,0.0001693]
[1743138251892,0.45405328,86388.0,86387.0,0.0001693]
[1743138252509,0.3,86387.0,86372.0,0.0001693]
[1743138252711,0.3,86381.0,86372.0,0.0001693]
[1743138252930,0.00289469,86380.0,86372.0,0.0001693]
[1743138253132,0.3,86378.0,86372.0,0.0001693]
[1743138253392,0.00289478,86377.0,86372.0,0.0001693]
[1743138253895,0.3,86378.0,86372.0,0.0001693]
[1743138254071,0.02356576,86373.0,86372.0,0.0001693]
[1743138254627,0.50912576,86373.0,86372.0,0.0001693]
[1743138255037,0.20912576,86373.0,86372.0,0.0001693]
[1743138255282,0.18556,86373.0,86372.0,0.0001693]
[1743138255490,0.24125269,86373.0,86372.0,0.0001693]
[1743138255960,0.05569269,86373.0,86372.0,0.0001693]
[1743138256364,0.24225269,86373.0,86372.0,0.0001693]
[1743138256576,0.20797431,86373.0,86372.0,0.0001693]
[1743138256779,0.20697431,86373.0,86372.0,0.0001693]
[1743138256975,0.20797431,86373.0,86372.0,0.0001693]
[1743138258044,0.24225269,86373.0,86372.0,0.0001693]
[1743138258476,0.05669269,86373.0,86372.0,0.0001693]
[1743138258681,0.24221269,86373.0,86372.0,0.0001693]
[1743138259756,0.05669269,86373.0,86372.0,0.0001693]
[1743138260095,0.24217269,86373.0,86372.0,0.0001693]
[1743138260639,0.24217269,86373.0,86372.0,0.0117463]
[1743138260640,0.05669269,86373.0,86372.0,0.0117463]
[1743138261076,0.05669269,86373.0,86372.0,0.55281569]
[1743138261603,0.02241431,86373.0,86372.0,0.55281569]
[1743138263481,0.02241431,86373.0,86372.0,0.42698105]
[1743138264375,0.02241431,86373.0,86372.0,0.67011405]
[1743138264712,0.02241431,86373.0,86372.0,0.42698105]
[1743138264958,0.02241431,86373.0,86372.0,0.67011405]
[1743138265335,0.02241431,86373.0,86372.0,0.42698105]
[1743138267955,0.04057509,86373.0,86372.0,0.42698105]
[1743138268157,0.04057509,86373.0,86372.0,0.4124402]
[1743138268992,0.04057509,86373.0,86372.0,0.42698105]
[1743138269199,0.04057509,86373.0,86372.0,0.43855805]
[1743138269417,0.22589509,86373.0,86372.0,0.42698105]
[1743138269788,0.22589509,86373.0,86372.0,0.43855805]
[1743138272205,0.04057509,86373.0,86372.0,0.43855805]
[1743138273655,0.04057509,86373.0,86372.0,0.42698105]
[1743138274414,0.04057509,86373.0,86372.0,0.65853705]
[1743138274675,0.04057509,86373.0,86372.0,0.42698105]
[1743138275105,0.04057509,86373.0,86372.0,0.70563567]
[1743138275300,0.04057509,86373.0,86372.0,0.67011405]
[1743138275485,0.04057509,86373.0,86372.0,0.78437169]
[1743138275817,0.03957509,86373.0,86372.0,0.78437169]
[1743138276231,0.04057509,86373.0,86372.0,0.78437169]
[1743138276614,0.03957509,86373.0,86372.0,0.78437169]
[1743138277339,0.03957509,86373.0,86372.0,0.78637169]
[1743138277543,0.02141431,86373.0,86372.0,0.78637169]
[1743138279356,0.02141431,86373.0,86372.0,0.42898105]
[1743138281113,0.03957461,86373.0,86372.0,0.42898105]
[1743138281316,0.03957461,86373.0,86372.0,0.44055805]
[1743138281657,0.03957461,86373.0,86372.0,0.42898105]
[1743138283483,0.03957461,86373.0,86372.0,0.4144402]
[1743138283815,0.03319177,86373.0,86372.0,0.0021693]
[1743138284045,0.46028675,86373.0,86372.0,0.0021693]
[1743138284245,0.45739177,86373.0,86372.0,0.0021693]
[1743138284664,0.45739177,86373.0,86372.0,0.0001693]
[1743138285423,0.4917571,86373.0,86372.0,0.0001693]
[1743138285624,0.3,86372.0,86355.0,0.0001693]
[1743138285848,0.3,86364.0,86355.0,0.0001693]
[1743138286051,0.00289523,86363.0,86355.0,0.0001693]
[1743138286262,0.3,86364.0,86355.0,0.0001693]
[1743138286667,0.29059703,86364.0,86355.0,0.0001693]
[1743138287096,0.29071019,86364.0,86355.0,0.0001693]
[1743138287590,0.05577964,86363.0,86355.0,0.06033516]
[1743138287788,0.05577964,86363.0,86355.0,0.0001693]
[1743138288199,0.01816419,86362.0,86355.0,0.0001693]
[1743138288499,0.185,86361.0,86355.0,0.0011693]
[1743138288707,0.3,86360.0,86355.0,0.0011693]
[1743138289456,0.3,86360.0,86355.0,0.0001693]
[1743138289834,0.02370631,86356.0,86355.0,0.0001693]
[1743138292320,0.04512062,86356.0,86355.0,0.0001693]
[1743138292521,0.04512062,86356.0,86355.0,0.0011693]
[1743138292733,0.42222062,86356.0,86355.0,0.0001693]
[1743138293377,0.46782062,86356.0,86355.0,0.0001693]
[1743138293866,0.50218595,86356.0,86355.0,0.0001693]
[1743138294670,0.50318595,86356.0,86355.0,0.0001693]
[1743138295083,0.3,86355.0,86339.0,0.0001689]
[1743138295938,0.3,86349.0,86339.0,0.0001689]
[1743138296615,0.05577964,86348.0,86339.0,0.0001689]
[1743138297287,0.18484,86347.0,86339.0,0.0001689]
[1743138297910,0.00289545,86346.0,86339.0,0.0001689]
[1743138298533,0.05867509,86346.0,86339.0,0.0001689]
[1743138298867,0.01816675,86345.0,86339.0,0.0001689]
[1743138299205,0.02378033,86340.0,86339.0,0.0001689]
[1743138302012,0.04519464,86340.0,86339.0,0.0011689]
[1743138303277,0.02141431,86340.0,86339.0,0.25893675]
[1743138303602,0.02141431,86340.0,86339.0,0.83326529]
[1743138304662,0.02141431,86344.0,86343.0,0.243215]
[1743138304873,0.02141431,86344.0,86343.0,0.78428439]
[1743138305279,0.02141431,86344.0,86343.0,0.86248439]
[1743138305479,0.02141431,86344.0,86343.0,0.86748439]
[1743138305678,0.02141431,86344.0,86343.0,0.97674203]
[1743138305885,0.02141431,86344.0,86343.0,0.86248439]
[1743138307318,0.02141431,86344.0,86343.0,0.86548439]
[1743138307545,0.02141431,86344.0,86343.0,0.42681175]
[1743138307751,0.02141431,86344.0,86343.0,0.4122709]
[1743138308071,0.03957959,86344.0,86343.0,0.4152709]
[1743138308452,0.01816528,86344.0,86343.0,0.003]
[1743138308866,0.01816528,86344.0,86339.0,0.0001689]
[1743138309063,0.3,86342.0,86339.0,0.0001689]
[1743138309487,0.00289573,86341.0,86339.0,0.0001689]
[1743138310245,0.41329631,86340.0,86339.0,0.0001689]
[1743138310962,0.40171431,86340.0,86339.0,0.0001689]
[1743138311190,0.41329631,86340.0,86339.0,0.0001689]
[1743138311389,0.41829631,86340.0,86339.0,0.0001689]
[1743138311710,0.41329631,86340.0,86339.0,0.0001689]
[1743138311912,0.46599631,86340.0,86339.0,0.0001689]
[1743138312107,0.47099631,86340.0,86339.0,0.0001689]
[1743138312308,0.47099631,86340.0,86321.0,0.002]
[1743138312309,0.3775,86322.0,86321.0,0.002]
[1743138312535,0.573684,86322.0,86321.0,0.002]
[1743138312931,0.58027447,86322.0,86321.0,0.002]
[1743138313360,0.09567447,86322.0,86321.0,0.002]
[1743138313533,0.3358695,86322.0,86321.0,0.00244493]
[1743138313767,0.3398695,86322.0,86321.0,0.00244493]
[1743138313969,0.1553095,86322.0,86321.0,0.00244493]
[1743138314144,0.3398695,86322.0,86321.0,0.00244493]
[1743138314350,0.32169503,86322.0,86321.0,0.00244493]
[1743138314568,0.28747431,86322.0,86321.0,0.00244493]
[1743138316185,0.58747431,86322.0,86321.0,0.00244493]
[1743138317036,0.59905831,86322.0,86321.0,0.00244493]
[1743138317237,0.62253282,86322.0,86321.0,0.00244493]
[1743138317589,0.61853282,86322.0,86321.0,0.00244493]
[1743138317951,0.66963282,86322.0,86321.0,0.00244493]
[1743138318230,0.66559282,86322.0,86321.0,0.00244493]
[1743138318577,0.66959282,86322.0,86321.0,0.00244493]
[1743138318792,0.65400882,86322.0,86321.0,0.00261423]
[1743138319214,0.46948882,86322.0,86321.0,0.00261423]
[1743138319415,0.04488882,86322.0,86321.0,0.00261423]
[1743138319659,0.22940882,86322.0,86321.0,0.00261423]
[1743138320212,0.23440882,86322.0,86321.0,0.00261423]
[1743138320435,0.22940882,86322.0,86321.0,0.00261423]
[1743138320638,0.20799451,86322.0,86321.0,0.00261423]
[1743138320901,0.22979396,86322.0,86321.0,0.00261423]
[1743138321080,0.20799451,86322.0,86321.0,0.00261423]
[1743138321812,0.2261681,86322.0,86321.0,0.00261423]
[1743138323058,0.0416481,86322.0,86321.0,0.00261423]
[1743138323241,0.2261281,86322.0,86321.0,0.00261423]
[1743138324564,0.20795451,86322.0,86321.0,0.00261423]
[1743138325578,0.22874996,86322.0,86321.0,0.00261423]
[1743138325935,0.20795451,86322.0,86321.0,0.00261423]
[1743138326346,0.50795451,86322.0,86321.0,0.00261423]
[1743138326551,0.50787451,86322.0,86321.0,0.00261423]
[1743138326754,0.32347451,86322.0,86321.0,0.00261423]
[1743138326928,0.20787451,86322.0,86321.0,0.00261423]
[1743138327132,0.1844,86322.0,86321.0,0.00261423]
[1743138327330,0.1,86342.0,86321.0,0.00261423]
[1743138327547,0.19366513,86340.0,86321.0,0.00261423]
[1743138327705,0.3,86339.0,86321.0,0.00261423]
[1743138328087,0.19366513,86340.0,86321.0,0.00261423]
[1743138328315,0.02350967,86328.0,86321.0,0.00261423]
[1743138329421,0.18432,86327.0,86321.0,0.00261423]
[1743138329625,0.00289595,86326.0,86321.0,0.00261423]
[1743138329822,0.30289619,86326.0,86321.0,0.00261423]
[1743138330116,0.31817294,86326.0,86321.0,0.00261423]
[1743138330489,0.31817294,86326.0,86308.0,0.0001692]
[1743138330644,0.3,86319.0,86308.0,0.0003025]
[1743138330851,0.00289632,86318.0,86308.0,0.0003025]
[1743138331048,0.3,86319.0,86308.0,0.0003025]
[1743138331254,0.00289632,86318.0,86308.0,0.0003025]
[1743138331491,0.01817418,86316.0,86308.0,0.0003025]
[1743138332691,0.02370678,86313.0,86308.0,0.0003025]
[1743138332891,0.01817418,86316.0,86308.0,0.0003025]
[1743138333309,0.02298227,86314.0,86308.0,0.0003025]
[1743138339134,0.01817352,86313.0,86308.0,0.0003025]
[1743138342626,0.3,86311.0,86308.0,0.0003025]
[1743138344600,0.18404,86310.0,86308.0,0.0003025]
[1743138346286,0.30289648,86309.0,86308.0,0.0003025]
[1743138346500,0.3,86309.0,86308.0,0.0003025]
[1743138348966,0.31817463,86309.0,86308.0,0.0003025]
[1743138351494,0.39917463,86309.0,86308.0,0.0003025]
[1743138351721,0.64248563,86309.0,86308.0,0.0003025]
[1743138351920,0.63089963,86309.0,86308.0,0.0003025]
[1743138352331,0.67619963,86309.0,86308.0,0.0003025]
[1743138352534,0.68978563,86309.0,86308.0,0.0003025]
[1743138353756,0.68778563,86309.0,86308.0,0.0003025]
[1743138354086,0.69178563,86309.0,86308.0,0.0003025]
[1743138354647,0.673611,86309.0,86308.0,0.0003025]
[1743138355045,0.669611,86309.0,86308.0,0.0003025]
[1743138355256,0.673611,86309.0,86308.0,0.0003025]
[1743138355865,0.69501248,86309.0,86308.0,0.0003025]
[1743138357514,0.673611,86309.0,86308.0,0.0003025]
[1743138358704,0.3,86295.0,86274.0,0.01454085]
[1743138358911,0.3,86289.0,86271.0,0.01454085]
[1743138359090,0.3,86287.0,86271.0,0.01454085]
[1743138360341,0.01817975,86284.0,86271.0,0.01454085]
[1743138360551,0.02275329,86275.0,86271.0,0.01454085]
[1743138360718,0.02275329,86275.0,86270.0,0.54832373]
[1743138361725,0.01818023,86274.0,86270.0,0.54832373]
[1743138362370,0.01818023,86274.0,86270.0,0.00013353]
[1743138362571,0.00289823,86273.0,86270.0,0.00013353]
[1743138362740,0.30289823,86273.0,86270.0,0.00013353]
[1743138362986,0.0819,86271.0,86270.0,0.00013353]
[1743138363146,0.08479837,86271.0,86270.0,0.00013353]
[1743138363348,0.38479837,86271.0,86270.0,0.00013353]
[1743138363532,0.393491,86271.0,86270.0,0.00013353]
[1743138363739,0.3819,86271.0,86270.0,0.00013353]
[1743138364724,0.393491,86271.0,86270.0,0.00013353]
[1743138364899,0.3819,86271.0,86270.0,0.00013353]
[1743138365747,0.48372,86271.0,86270.0,0.00013353]
[1743138366106,0.18372,86271.0,86270.0,0.02626538]
[1743138366281,0.18672,86271.0,86270.0,0.10756538]
[1743138366480,0.18672,86271.0,86270.0,0.09597438]
[1743138367127,0.18368,86276.0,86270.0,0.09597438]
[1743138367330,0.3,86275.0,86271.0,0.01454085]
[1743138367894,0.18368,86276.0,86271.0,0.01454085]
[1743138368907,0.01851957,86275.0,86271.0,0.01454085]
[1743138370135,0.18364,86274.0,86271.0,0.01454085]
[1743138373304,0.18364,86274.0,86270.0,0.08160283]
[1743138373305,0.01851957,86275.0,86274.0,0.25794985]
[1743138373508,0.01851957,86275.0,86274.0,0.37220749]
[1743138373946,0.01851957,86275.0,86274.0,0.12879849]
[1743138373947,0.0003386,86275.0,86274.0,0.12879849]
[1743138374234,0.0003386,86275.0,86274.0,0.14038849]
[1743138375569,0.0003386,86275.0,86274.0,0.22198849]
[1743138376158,0.0003386,86275.0,86274.0,0.38636972]
[1743138378051,0.0003386,86275.0,86274.0,0.41636962]
[1743138379059,0.0003386,86275.0,86274.0,0.46476962]
[1743138382612,0.0003386,86275.0,86274.0,0.76476962]
[1743138384821,0.01817663,86290.0,86289.0,0.41130775]
[1743138385043,6.0,86300.0,86299.0,0.10422785]
[1743138385264,6.0,86300.0,86299.0,1.09789777]
[1743138386044,6.0,86300.0,86299.0,1.07615739]
[1743138386204,6.0,86300.0,86299.0,1.24020002]
[1743138386412,6.0,86300.0,86299.0,1.24533355]
[1743138386628,6.0,86300.0,86299.0,1.25033355]
[1743138387407,6.0,86300.0,86299.0,1.29583355]
[1743138387631,6.0,86300.0,86299.0,1.41009119]
[1743138388523,4.80353166,86300.0,86299.0,2.86098719]
[1743138388726,4.76011725,86300.0,86299.0,2.05239219]
[1743138388938,3.29463097,86300.0,86299.0,2.05239219]
[1743138389113,1.77331617,86300.0,86299.0,1.90143455]
[1743138389461,1.23695317,86300.0,86299.0,1.90143455]
[1743138389702,1.23695317,86300.0,86299.0,1.85685455]
[1743138389906,1.15105317,86300.0,86299.0,1.86085455]
[1743138390523,1.0822122,86300.0,86299.0,1.86085455]
[1743138390726,1.0822122,86300.0,86299.0,1.88371869]
[1743138390904,1.04738664,86300.0,86299.0,1.88371869]
[1743138391570,1.0655564,86300.0,86299.0,1.88371869]
[1743138392447,1.0655564,86300.0,86299.0,1.58099769]
[1743138393206,1.065895,86300.0,86299.0,1.76407769]
[1743138393906,0.90185237,86300.0,86299.0,2.10575506]
[1743138394097,0.90185237,86300.0,86299.0,2.09121421]
[1743138394298,0.90185237,86300.0,86299.0,2.10575506]
[1743138394931,0.90167703,86300.0,86299.0,2.10575506]
[1743138395357,0.90167703,86300.0,86299.0,1.98675216]
[1743138395757,0.88350727,86300.0,86299.0,1.98675216]
[1743138395959,0.88350727,86300.0,86299.0,1.96667502]
[1743138396330,0.88350727,86300.0,86299.0,1.99167492]
[1743138396531,0.0013386,86300.0,86299.0,1.99167492]
[1743138396732,0.0013386,86300.0,86299.0,1.96667502]
[1743138396945,0.0013386,86300.0,86299.0,1.99167492]
[1743138398222,0.0013386,86300.0,86299.0,2.06197492]
[1743138399988,0.01950859,86300.0,86299.0,2.06197492]
[1743138400514,0.01950859,86300.0,86299.0,1.99167492]
[1743138405530,0.01950859,86300.0,86299.0,2.40957492]
[1743138405947,0.01950859,86300.0,86299.0,2.40974422]
[1743138406308,0.0013386,86300.0,86299.0,3.06704422]
[1743138406510,0.0013386,86300.0,86299.0,2.77300722]
[1743138406974,0.0013386,86300.0,86299.0,2.70168322]
[1743138407564,0.0013386,86300.0,86299.0,2.48004422]
[1743138409015,0.0003388,86326.0,86309.0,0.58785175]
[1743138409172,0.0003388,86326.0,86325.0,0.248266]
[1743138409373,0.0003388,86326.0,86325.0,0.37706449]
[1743138409581,0.0003388,86326.0,86325.0,0.81962559]
[1743138410501,0.0003388,86326.0,86325.0,0.82462559]
[1743138411701,0.0003388,86326.0,86325.0,0.83324628]
[1743138413927,0.0003388,86326.0,86325.0,1.13324628]
[1743138414261,0.01850576,86338.0,86325.0,1.13324628]
[1743138414262,0.01850576,86338.0,86337.0,0.248232]
[1743138414466,0.01850576,86338.0,86337.0,1.14754089]
[1743138414690,0.0003388,86338.0,86337.0,1.15912289]
[1743138414932,0.0003388,86338.0,86337.0,1.17092885]
[1743138416703,0.0003388,86338.0,86337.0,1.17292885]
[1743138417659,0.0003388,86338.0,86337.0,1.17092885]
[1743138417841,0.0003388,86338.0,86337.0,1.17392885]
[1743138418604,0.0003388,86338.0,86337.0,1.17892885]
[1743138418808,0.0003388,86338.0,86337.0,1.20392875]
[1743138419806,0.0003388,86338.0,86337.0,1.20092875]
[1743138420048,0.0003388,86338.0,86337.0,1.20492875]
[1743138420234,0.01816296,86347.0,86346.0,0.248207]
[1743138420381,0.01816296,86347.0,86346.0,0.37700549]
[1743138421481,0.01816296,86347.0,86346.0,0.36542449]
[1743138421654,0.01816296,86347.0,86346.0,0.13379849]
[1743138422091,0.01816296,86347.0,86346.0,0.36542449]
[1743138422410,0.01816296,86347.0,86346.0,0.37700549]
[1743138422617,0.01816296,86347.0,86346.0,0.37900549]
[1743138422830,0.01820741,86347.0,86346.0,0.37900549]
[1743138423458,0.01820741,86347.0,86346.0,0.35550549]
[1743138424349,0.01820741,86347.0,86346.0,0.11229849]
[1743138424549,4.445e-05,86347.0,86346.0,0.09775764]
[1743138425024,4.445e-05,86347.0,86346.0,0.11229849]
[1743138425198,4.445e-05,86347.0,86346.0,0.09775764]
[1743138425684,4.445e-05,86347.0,86346.0,0.11229849]
[1743138426181,4.445e-05,86347.0,86346.0,0.52918209]